[Event "Late-Titled-Tuesday-Blitz-January-23-2024"]
[Site "Chess.com"]
[Date "2024.01.23"]
[Round "4"]
[White "GiorgianBarbosa"]
[Black "Fh2411"]
[Result "1-0"]
[WhiteElo "2442"]
[BlackElo "2591"]
[TimeControl "180+1"]
[EndTime "14:38:33 PST"]
[Termination "GiorgianBarbosa won on time"]

1. c4 {[%clk 0:03:00.7]} 1... c6 {[%clk 0:02:54.9]} 2. g3 {[%clk 0:03:01.6]}
2... d5 {[%clk 0:02:55.1]} 3. Bg2 {[%clk 0:03:02.1]} 3... Nf6 {[%clk 0:02:55.5]}
4. Nf3 {[%clk 0:03:03]} 4... Bf5 {[%clk 0:02:55.9]} 5. O-O {[%clk 0:03:03.5]}
5... e6 {[%clk 0:02:56.2]} 6. b3 {[%clk 0:03:04.1]} 6... h6 {[%clk 0:02:55.3]}
7. Bb2 {[%clk 0:03:04.4]} 7... Be7 {[%clk 0:02:55.7]} 8. d3 {[%clk 0:03:04.6]}
8... O-O {[%clk 0:02:56.3]} 9. Nbd2 {[%clk 0:03:04.9]} 9... Nbd7 {[%clk
0:02:55.8]} 10. Qc2 {[%clk 0:03:04.9]} 10... Bh7 {[%clk 0:02:56.2]} 11. a3
{[%clk 0:03:04.5]} 11... a5 {[%clk 0:02:56.1]} 12. Rad1 {[%clk 0:03:03.1]} 12...
Qb6 {[%clk 0:02:48.6]} 13. e3 {[%clk 0:02:51.9]} 13... Rfd8 {[%clk 0:02:44.4]}
14. Qc3 {[%clk 0:02:42]} 14... Nc5 {[%clk 0:02:13]} 15. Ne5 {[%clk 0:02:35.9]}
15... Rac8 {[%clk 0:02:07.5]} 16. h4 {[%clk 0:02:32]} 16... Bf8 {[%clk
0:01:52.9]} 17. Kh2 {[%clk 0:02:11.3]} 17... Qa6 {[%clk 0:01:48.3]} 18. g4
{[%clk 0:02:04.3]} 18... Nfd7 {[%clk 0:01:31.9]} 19. Nxd7 {[%clk 0:01:58]} 19...
Nxd7 {[%clk 0:01:22.5]} 20. g5 {[%clk 0:01:54.6]} 20... hxg5 {[%clk 0:01:23.4]}
21. hxg5 {[%clk 0:01:54.2]} 21... b5 {[%clk 0:01:19.2]} 22. Rh1 {[%clk
0:01:42.4]} 22... dxc4 {[%clk 0:01:14.8]} 23. bxc4 {[%clk 0:01:39.4]} 23... b4
{[%clk 0:01:12]} 24. axb4 {[%clk 0:01:40.3]} 24... axb4 {[%clk 0:01:12.5]} 25.
Qd4 {[%clk 0:01:40.3]} 25... f6 {[%clk 0:00:39.9]} 26. Qh4 {[%clk 0:01:27.8]}
26... fxg5 {[%clk 0:00:33.6]} 27. Qxg5 {[%clk 0:01:28.7]} 27... Bxd3 {[%clk
0:00:24.9]} 28. Ne4 {[%clk 0:01:19.3]} 28... Qxc4 {[%clk 0:00:17]} 29. Rxd3
{[%clk 0:00:56.4]} 29... Qxd3 {[%clk 0:00:15.8]} 30. Kg3 {[%clk 0:00:56.9]}
30... Qb5 {[%clk 0:00:12.5]} 31. Qh4 {[%clk 0:00:53.2]} 31... Qf5 {[%clk
0:00:12.3]} 32. Ng5 {[%clk 0:00:42.7]} 32... Bd6+ {[%clk 0:00:08.6]} 33. f4
{[%clk 0:00:42.9]} 33... Bxf4+ {[%clk 0:00:03.6]} 34. exf4 {[%clk 0:00:39.2]}
34... Qd3+ {[%clk 0:00:04]} 35. Bf3 {[%clk 0:00:38.3]} 35... Kf8 {[%clk
0:00:03]} 36. Qh8+ {[%clk 0:00:22]} 36... Ke7 {[%clk 0:00:03.4]} 37. Qxg7+
{[%clk 0:00:22.7]} 37... Kd6 {[%clk 0:00:04.1]} 38. Rd1 {[%clk 0:00:23.6]} 38...
Qxd1 {[%clk 0:00:04.2]} 39. Bxd1 {[%clk 0:00:24.5]} 39... Rg8 {[%clk 0:00:03.5]}
40. Qf7 {[%clk 0:00:20.1]} 40... Nc5 {[%clk 0:00:01.7]} 41. Be5+ {[%clk
0:00:17.6]} 41... Kd5 {[%clk 0:00:02.1]} 42. Bf3+ {[%clk 0:00:18.1]} 42... Kc4
{[%clk 0:00:02.6]} 43. Kf2 {[%clk 0:00:12.9]} 43... Rcf8 {[%clk 0:00:01.5]} 44.
Qc7 {[%clk 0:00:08.9]} 1-0

[Event "Late-Titled-Tuesday-Blitz-January-23-2024"]
[Site "Chess.com"]
[Date "2024.01.23"]
[Round "4"]
[White "Igor_Lysyj"]
[Black "BogdanDeac"]
[Result "0-1"]
[WhiteElo "2883"]
[BlackElo "3072"]
[TimeControl "180+1"]
[EndTime "14:38:34 PST"]
[Termination "BogdanDeac won on time"]

1. d4 {[%clk 0:03:00.1]} 1... Nf6 {[%clk 0:02:59.8]} 2. c4 {[%clk 0:02:59.8]}
2... e6 {[%clk 0:03:00.4]} 3. Nf3 {[%clk 0:03:00.1]} 3... d5 {[%clk 0:03:01.1]}
4. g3 {[%clk 0:03:00.6]} 4... dxc4 {[%clk 0:03:01.7]} 5. Bg2 {[%clk 0:03:00.4]}
5... Nc6 {[%clk 0:03:02.3]} 6. Qa4 {[%clk 0:02:59.4]} 6... Bd7 {[%clk
0:03:02.9]} 7. Qxc4 {[%clk 0:02:58.1]} 7... Na5 {[%clk 0:03:03.3]} 8. Qc3 {[%clk
0:02:58.1]} 8... Nd5 {[%clk 0:02:59.8]} 9. Qd3 {[%clk 0:02:58.2]} 9... c5 {[%clk
0:02:58]} 10. O-O {[%clk 0:02:56.4]} 10... Rc8 {[%clk 0:02:57.6]} 11. dxc5
{[%clk 0:02:43.2]} 11... Bxc5 {[%clk 0:02:52.7]} 12. Bd2 {[%clk 0:02:43]} 12...
Nc4 {[%clk 0:02:32.8]} 13. Bc1 {[%clk 0:02:17]} 13... Qf6 {[%clk 0:01:36.8]} 14.
Ng5 {[%clk 0:01:37.6]} 14... Nxb2 {[%clk 0:01:24.2]} 15. Bxb2 {[%clk 0:01:17.1]}
15... Qxb2 {[%clk 0:01:20.8]} 16. Nd2 {[%clk 0:01:17.4]} 16... Qd4 {[%clk
0:01:02.3]} 17. Qf3 {[%clk 0:01:07.3]} 17... Qf6 {[%clk 0:00:56]} 18. Qh5 {[%clk
0:00:49.5]} 18... Qg6 {[%clk 0:00:44.1]} 19. Qxg6 {[%clk 0:00:31.9]} 19... hxg6
{[%clk 0:00:43.9]} 20. Rfc1 {[%clk 0:00:22.8]} 20... Ke7 {[%clk 0:00:35.9]} 21.
Rab1 {[%clk 0:00:18.2]} 21... b6 {[%clk 0:00:28.9]} 22. Nb3 {[%clk 0:00:17.5]}
22... Ba3 {[%clk 0:00:27.2]} 23. Rxc8 {[%clk 0:00:16.7]} 23... Rxc8 {[%clk
0:00:26.6]} 24. Bxd5 {[%clk 0:00:15.7]} 24... exd5 {[%clk 0:00:26.7]} 25. Nd4
{[%clk 0:00:15.4]} 25... Rc1+ {[%clk 0:00:17.4]} 26. Rxc1 {[%clk 0:00:15.1]}
26... Bxc1 {[%clk 0:00:18.3]} 27. Ngf3 {[%clk 0:00:15.3]} 27... Kd6 {[%clk
0:00:17.3]} 28. Kf1 {[%clk 0:00:15.4]} 28... Bb2 {[%clk 0:00:14.3]} 29. e3
{[%clk 0:00:15.4]} 29... Ba3 {[%clk 0:00:08.7]} 30. Ke2 {[%clk 0:00:15.3]} 30...
Bc5 {[%clk 0:00:09.2]} 31. Kd2 {[%clk 0:00:15.2]} 31... b5 {[%clk 0:00:09.7]}
32. Ng5 {[%clk 0:00:13.9]} 32... f6 {[%clk 0:00:07.4]} 33. Ngf3 {[%clk
0:00:13.6]} 33... a5 {[%clk 0:00:07.7]} 34. Ne1 {[%clk 0:00:09.9]} 34... b4
{[%clk 0:00:07]} 35. Nd3 {[%clk 0:00:10.2]} 35... Bb6 {[%clk 0:00:05.3]} 36. Nf4
{[%clk 0:00:10.2]} 36... Be8 {[%clk 0:00:03.4]} 37. Nd3 {[%clk 0:00:09.9]} 37...
Bxd4 {[%clk 0:00:03.4]} 38. exd4 {[%clk 0:00:09.7]} 38... Kc6 {[%clk 0:00:04]}
39. h4 {[%clk 0:00:09.4]} 39... Kb5 {[%clk 0:00:03.8]} 40. Nf4 {[%clk
0:00:08.5]} 40... Bf7 {[%clk 0:00:03.2]} 41. Kd3 {[%clk 0:00:08.6]} 41... a4
{[%clk 0:00:03.5]} 42. g4 {[%clk 0:00:07.9]} 42... g5 {[%clk 0:00:03.7]} 43.
hxg5 {[%clk 0:00:07.8]} 43... fxg5 {[%clk 0:00:04.6]} 44. Nh3 {[%clk 0:00:08.2]}
44... Bg6+ {[%clk 0:00:05]} 45. Kd2 {[%clk 0:00:06.9]} 45... Kc4 {[%clk
0:00:05.1]} 46. Nxg5 {[%clk 0:00:07.1]} 46... b3 {[%clk 0:00:05.1]} 47. axb3+
{[%clk 0:00:06.8]} 47... axb3 {[%clk 0:00:06]} 0-1

[Event "Late-Titled-Tuesday-Blitz-January-23-2024"]
[Site "Chess.com"]
[Date "2024.01.23"]
[Round "4"]
[White "Arifarsky"]
[Black "szachmistrz2500"]
[Result "1/2-1/2"]
[WhiteElo "2703"]
[BlackElo "2507"]
[TimeControl "180+1"]
[EndTime "14:38:35 PST"]
[Termination "Game drawn by repetition"]

1. e4 {[%clk 0:03:00.9]} 1... c5 {[%clk 0:02:57]} 2. Nf3 {[%clk 0:03:00.9]} 2...
d6 {[%clk 0:02:57.3]} 3. c3 {[%clk 0:02:58.3]} 3... Nf6 {[%clk 0:02:56.4]} 4.
Bd3 {[%clk 0:02:58.3]} 4... Bg4 {[%clk 0:02:56.1]} 5. Bc2 {[%clk 0:02:55.4]}
5... e6 {[%clk 0:02:54.7]} 6. d4 {[%clk 0:02:52.4]} 6... cxd4 {[%clk 0:02:53.6]}
7. cxd4 {[%clk 0:02:53.3]} 7... Be7 {[%clk 0:02:51]} 8. O-O {[%clk 0:02:49.9]}
8... Nc6 {[%clk 0:02:49]} 9. Be3 {[%clk 0:02:48.2]} 9... O-O {[%clk 0:02:46.8]}
10. Nc3 {[%clk 0:02:45.4]} 10... a6 {[%clk 0:02:41]} 11. Rc1 {[%clk 0:02:44.3]}
11... Rc8 {[%clk 0:02:39.7]} 12. h3 {[%clk 0:02:43.4]} 12... Bh5 {[%clk
0:02:39.4]} 13. Re1 {[%clk 0:02:36.8]} 13... Na5 {[%clk 0:02:36.3]} 14. Bd3
{[%clk 0:02:16.8]} 14... Nc4 {[%clk 0:02:33.2]} 15. Qe2 {[%clk 0:02:12.9]} 15...
b5 {[%clk 0:02:26.5]} 16. g4 {[%clk 0:01:53.1]} 16... Bg6 {[%clk 0:02:18.2]} 17.
Red1 {[%clk 0:01:50.1]} 17... Nxe3 {[%clk 0:02:13.3]} 18. Qxe3 {[%clk
0:01:49.3]} 18... Qb6 {[%clk 0:02:12.5]} 19. a3 {[%clk 0:01:37.1]} 19... Rc7
{[%clk 0:02:08.1]} 20. Ne2 {[%clk 0:01:28.8]} 20... Rfc8 {[%clk 0:02:02.9]} 21.
Rxc7 {[%clk 0:01:25.2]} 21... Rxc7 {[%clk 0:02:02.2]} 22. Nf4 {[%clk 0:01:23.2]}
22... Nd7 {[%clk 0:02:00.9]} 23. Nxg6 {[%clk 0:01:22.5]} 23... hxg6 {[%clk
0:02:00.8]} 24. Rc1 {[%clk 0:01:19.2]} 24... Rc6 {[%clk 0:01:52.7]} 25. Qd2
{[%clk 0:01:12.4]} 25... Qc7 {[%clk 0:01:49.7]} 26. Rxc6 {[%clk 0:01:12]} 26...
Qxc6 {[%clk 0:01:50]} 27. Qc2 {[%clk 0:01:03]} 27... Qb7 {[%clk 0:01:48.5]} 28.
h4 {[%clk 0:00:55]} 28... Nb6 {[%clk 0:01:47.8]} 29. h5 {[%clk 0:00:52.1]} 29...
gxh5 {[%clk 0:01:46.5]} 30. gxh5 {[%clk 0:00:53]} 30... Qc8 {[%clk 0:01:45.1]}
31. Qxc8+ {[%clk 0:00:40.6]} 31... Nxc8 {[%clk 0:01:45]} 32. a4 {[%clk
0:00:41.1]} 32... bxa4 {[%clk 0:01:44.6]} 33. Bxa6 {[%clk 0:00:41.1]} 33... Nb6
{[%clk 0:01:44.5]} 34. Bb5 {[%clk 0:00:41.5]} 34... Kh7 {[%clk 0:01:42.7]} 35.
Be8 {[%clk 0:00:37.5]} 35... f5 {[%clk 0:01:35.9]} 36. exf5 {[%clk 0:00:30.4]}
36... exf5 {[%clk 0:01:35.2]} 37. Kf1 {[%clk 0:00:30.6]} 37... Kh6 {[%clk
0:01:31]} 38. Ke2 {[%clk 0:00:27.3]} 38... Nc4 {[%clk 0:01:30.8]} 39. Bxa4
{[%clk 0:00:24.2]} 39... Nxb2 {[%clk 0:01:29.1]} 40. Bb5 {[%clk 0:00:24.4]}
40... Kxh5 {[%clk 0:01:25.5]} 41. d5 {[%clk 0:00:23.5]} 41... Bf6 {[%clk
0:01:22.7]} 42. Ne1 {[%clk 0:00:17.5]} 42... g5 {[%clk 0:01:17.5]} 43. Bd7
{[%clk 0:00:14.8]} 43... f4 {[%clk 0:01:07.9]} 44. f3 {[%clk 0:00:14.8]} 44...
Kh4 {[%clk 0:01:05.7]} 45. Bb5 {[%clk 0:00:13.5]} 45... Kg3 {[%clk 0:01:05.3]}
46. Bd7 {[%clk 0:00:13.3]} 46... Be5 {[%clk 0:00:59.8]} 47. Bg4 {[%clk
0:00:12.2]} 47... Nc4 {[%clk 0:00:58.6]} 48. Nd3 {[%clk 0:00:12.5]} 48... Bd4
{[%clk 0:00:55.2]} 49. Bh5 {[%clk 0:00:10.8]} 49... Ne3 {[%clk 0:00:53.5]} 50.
Nf2 {[%clk 0:00:10.5]} 50... Kh4 {[%clk 0:00:46.1]} 51. Bf7 {[%clk 0:00:08.2]}
51... Be5 {[%clk 0:00:39.5]} 52. Be6 {[%clk 0:00:06.9]} 52... Nc4 {[%clk
0:00:27.5]} 53. Ne4 {[%clk 0:00:05.7]} 53... Ne3 {[%clk 0:00:26.5]} 54. Nf2
{[%clk 0:00:05.9]} 54... Kg3 {[%clk 0:00:24.9]} 55. Ne4+ {[%clk 0:00:05.5]}
55... Kh4 {[%clk 0:00:25.2]} 56. Nf2 {[%clk 0:00:05.2]} 1/2-1/2

[Event "Late-Titled-Tuesday-Blitz-January-23-2024"]
[Site "Chess.com"]
[Date "2024.01.23"]
[Round "4"]
[White "Nor1lsk"]
[Black "KacperPolOK"]
[Result "1-0"]
[WhiteElo "2706"]
[BlackElo "2476"]
[TimeControl "180+1"]
[EndTime "14:38:37 PST"]
[Termination "Nor1lsk won on time"]

1. e4 {[%clk 0:02:59.2]} 1... c5 {[%clk 0:02:58.8]} 2. d3 {[%clk 0:02:59.2]}
2... Nc6 {[%clk 0:02:57.2]} 3. g3 {[%clk 0:02:59.6]} 3... g6 {[%clk 0:02:55.7]}
4. Bg2 {[%clk 0:03:00.2]} 4... Bg7 {[%clk 0:02:56.3]} 5. f4 {[%clk 0:03:00.9]}
5... e6 {[%clk 0:02:54]} 6. Nf3 {[%clk 0:03:01.4]} 6... Nge7 {[%clk 0:02:54.1]}
7. O-O {[%clk 0:03:02.1]} 7... d5 {[%clk 0:02:54.7]} 8. c3 {[%clk 0:03:02.7]}
8... O-O {[%clk 0:02:54.4]} 9. Na3 {[%clk 0:03:02.8]} 9... Rb8 {[%clk
0:02:51.6]} 10. e5 {[%clk 0:03:02.8]} 10... b5 {[%clk 0:02:49.4]} 11. Nc2 {[%clk
0:03:03.3]} 11... a5 {[%clk 0:02:46.5]} 12. Be3 {[%clk 0:03:02.9]} 12... d4
{[%clk 0:02:35.4]} 13. cxd4 {[%clk 0:03:02.7]} 13... Nf5 {[%clk 0:02:35.7]} 14.
dxc5 {[%clk 0:03:00.7]} 14... Bb7 {[%clk 0:02:27]} 15. Bf2 {[%clk 0:02:58.8]}
15... h5 {[%clk 0:02:17.8]} 16. h3 {[%clk 0:02:52]} 16... Qd7 {[%clk 0:02:08.9]}
17. g4 {[%clk 0:02:44.1]} 17... hxg4 {[%clk 0:02:07.4]} 18. hxg4 {[%clk
0:02:45]} 18... Nh6 {[%clk 0:02:07.4]} 19. Ng5 {[%clk 0:02:44.6]} 19... Rbd8
{[%clk 0:02:06.5]} 20. d4 {[%clk 0:02:39.5]} 20... f6 {[%clk 0:02:06.9]} 21. Ne4
{[%clk 0:02:29.8]} 21... fxe5 {[%clk 0:01:54.7]} 22. fxe5 {[%clk 0:02:30.7]}
22... Ne7 {[%clk 0:01:54.7]} 23. Nd6 {[%clk 0:02:25.4]} 23... Bxg2 {[%clk
0:01:53.3]} 24. Kxg2 {[%clk 0:02:25.1]} 24... Nd5 {[%clk 0:01:51.3]} 25. Bh4
{[%clk 0:02:17.6]} 25... Qc6 {[%clk 0:01:43.2]} 26. Kg3 {[%clk 0:02:02.1]} 26...
Rb8 {[%clk 0:01:12.6]} 27. Qe2 {[%clk 0:01:53.4]} 27... b4 {[%clk 0:01:09.4]}
28. Rxf8+ {[%clk 0:01:44.5]} 28... Rxf8 {[%clk 0:01:07.6]} 29. Rf1 {[%clk
0:01:43.3]} 29... Rxf1 {[%clk 0:01:04.2]} 30. Qxf1 {[%clk 0:01:43.1]} 30... b3
{[%clk 0:01:02.5]} 31. axb3 {[%clk 0:01:42.5]} 31... a4 {[%clk 0:01:00.4]} 32.
b4 {[%clk 0:01:39.8]} 32... a3 {[%clk 0:00:44.8]} 33. bxa3 {[%clk 0:01:39.7]}
33... Qa4 {[%clk 0:00:44.8]} 34. Qd3 {[%clk 0:01:38.4]} 34... Kh7 {[%clk
0:00:32.1]} 35. b5 {[%clk 0:01:38.2]} 35... Bxe5+ {[%clk 0:00:28.1]} 36. Kf3
{[%clk 0:01:30.5]} 36... Bxd6 {[%clk 0:00:21.8]} 37. cxd6 {[%clk 0:01:30.1]}
37... Qa8 {[%clk 0:00:20.3]} 38. Qe4 {[%clk 0:01:25.5]} 38... Qf8+ {[%clk
0:00:20.4]} 39. Kg2 {[%clk 0:01:17.9]} 39... Qxd6 {[%clk 0:00:19]} 40. a4 {[%clk
0:01:06.7]} 40... Nf4+ {[%clk 0:00:17]} 41. Kf3 {[%clk 0:01:05.4]} 41... Nh3
{[%clk 0:00:11.5]} 42. Qe5 {[%clk 0:00:55.8]} 42... Qf8+ {[%clk 0:00:06.2]} 43.
Kg3 {[%clk 0:00:49.5]} 43... Ng1 {[%clk 0:00:05.8]} 44. Qe3 {[%clk 0:00:40.9]}
44... Qa8 {[%clk 0:00:04.3]} 45. Qxg1 {[%clk 0:00:37.5]} 45... Qe4 {[%clk
0:00:03.5]} 46. Qd1 {[%clk 0:00:32.5]} 46... Qd5 {[%clk 0:00:02.2]} 47. Qf3
{[%clk 0:00:28.8]} 47... Qc4 {[%clk 0:00:02.2]} 48. Ne3 {[%clk 0:00:25.4]} 48...
Qd3 {[%clk 0:00:02.4]} 49. b6 {[%clk 0:00:25.1]} 49... Qxd4 {[%clk 0:00:02.7]}
50. b7 {[%clk 0:00:24.3]} 50... Qd6+ {[%clk 0:00:03.1]} 51. Qf4 {[%clk
0:00:23.5]} 51... e5 {[%clk 0:00:01.3]} 52. Qe4 {[%clk 0:00:23.4]} 52... Qc7
{[%clk 0:00:01.4]} 53. Qd5 {[%clk 0:00:22.4]} 53... e4+ {[%clk 0:00:02.3]} 54.
Kh3 {[%clk 0:00:21.9]} 1-0

[Event "Late-Titled-Tuesday-Blitz-January-23-2024"]
[Site "Chess.com"]
[Date "2024.01.23"]
[Round "4"]
[White "Elsa167"]
[Black "Vladimir_2020"]
[Result "1-0"]
[WhiteElo "2947"]
[BlackElo "2731"]
[TimeControl "180+1"]
[EndTime "14:38:38 PST"]
[Termination "Elsa167 won by resignation"]

1. d4 {[%clk 0:03:00.9]} 1... d5 {[%clk 0:02:59.2]} 2. c4 {[%clk 0:03:01.2]}
2... c6 {[%clk 0:02:59.4]} 3. cxd5 {[%clk 0:03:01.4]} 3... cxd5 {[%clk 0:02:59]}
4. Bf4 {[%clk 0:03:01.9]} 4... Nc6 {[%clk 0:02:57.4]} 5. e3 {[%clk 0:03:02.3]}
5... Nf6 {[%clk 0:02:56.7]} 6. Nc3 {[%clk 0:03:02.6]} 6... e6 {[%clk 0:02:55.4]}
7. Bd3 {[%clk 0:03:02.4]} 7... Be7 {[%clk 0:02:54.3]} 8. Rc1 {[%clk 0:03:01.2]}
8... O-O {[%clk 0:02:53.9]} 9. h3 {[%clk 0:03:01.5]} 9... Bd6 {[%clk 0:02:51.4]}
10. Bxd6 {[%clk 0:02:59.5]} 10... Qxd6 {[%clk 0:02:51.2]} 11. f4 {[%clk
0:02:59.9]} 11... Bd7 {[%clk 0:02:50.3]} 12. Nf3 {[%clk 0:03:00.1]} 12... Rfc8
{[%clk 0:02:50]} 13. O-O {[%clk 0:02:59.2]} 13... Be8 {[%clk 0:02:41.3]} 14. Ne5
{[%clk 0:02:58.9]} 14... Nd7 {[%clk 0:02:38]} 15. Qe2 {[%clk 0:02:40.2]} 15...
f6 {[%clk 0:02:35.7]} 16. Nb5 {[%clk 0:02:40.1]} 16... Qe7 {[%clk 0:02:26.3]}
17. Nxc6 {[%clk 0:02:39.7]} 17... bxc6 {[%clk 0:02:26]} 18. Nc3 {[%clk
0:02:40.3]} 18... Bg6 {[%clk 0:02:10.7]} 19. e4 {[%clk 0:02:19.1]} 19... Qb4
{[%clk 0:02:01.2]} 20. Qf2 {[%clk 0:02:14.4]} 20... c5 {[%clk 0:01:54.7]} 21. a3
{[%clk 0:01:44.9]} 21... Qxd4 {[%clk 0:01:52.2]} 22. f5 {[%clk 0:01:36.7]} 22...
Qxf2+ {[%clk 0:01:24.3]} 23. Rxf2 {[%clk 0:01:34.6]} 23... Ne5 {[%clk
0:01:22.4]} 24. Ba6 {[%clk 0:01:30]} 24... Be8 {[%clk 0:00:46.3]} 25. Bxc8
{[%clk 0:01:14.2]} 25... Rxc8 {[%clk 0:00:45.8]} 26. fxe6 {[%clk 0:01:09.3]}
26... Nd3 {[%clk 0:00:45.5]} 27. Nxd5 {[%clk 0:01:09.8]} 27... Kf8 {[%clk
0:00:45.4]} 28. Rc3 {[%clk 0:01:00.1]} 28... Nxf2 {[%clk 0:00:45.2]} 29. Kxf2
{[%clk 0:01:01]} 29... Rc6 {[%clk 0:00:45.1]} 30. e7+ {[%clk 0:01:00.2]} 30...
Kf7 {[%clk 0:00:45.3]} 31. Ke3 {[%clk 0:00:56.7]} 31... a5 {[%clk 0:00:41.8]}
32. Rb3 {[%clk 0:00:55.2]} 32... Re6 {[%clk 0:00:30.6]} 33. g4 {[%clk
0:00:30.5]} 33... Bc6 {[%clk 0:00:29.8]} 34. Kd3 {[%clk 0:00:29.6]} 34... Bxd5
{[%clk 0:00:24.7]} 35. exd5 {[%clk 0:00:30.5]} 35... Rxe7 {[%clk 0:00:25.1]} 36.
Rb5 {[%clk 0:00:31]} 36... Re1 {[%clk 0:00:22]} 37. Rxc5 {[%clk 0:00:26.3]}
37... Rh1 {[%clk 0:00:21.3]} 38. Rxa5 {[%clk 0:00:23.9]} 38... Rxh3+ {[%clk
0:00:20.5]} 39. Kd4 {[%clk 0:00:23.6]} 39... g5 {[%clk 0:00:17.6]} 40. Ra7+
{[%clk 0:00:23.6]} 40... Ke8 {[%clk 0:00:17.9]} 41. a4 {[%clk 0:00:21]} 41... h5
{[%clk 0:00:17.6]} 42. gxh5 {[%clk 0:00:19.4]} 42... g4 {[%clk 0:00:13.7]} 43.
Rg7 {[%clk 0:00:18.6]} 43... f5 {[%clk 0:00:11.9]} 44. Ke5 {[%clk 0:00:14.3]}
44... Kf8 {[%clk 0:00:10.1]} 45. Rg5 {[%clk 0:00:12.5]} 45... Rf3 {[%clk
0:00:09.9]} 46. h6 {[%clk 0:00:11]} 46... Ke7 {[%clk 0:00:05.6]} 47. d6+ {[%clk
0:00:08.9]} 47... Kd7 {[%clk 0:00:05.4]} 48. h7 {[%clk 0:00:09.4]} 48... Rh3
{[%clk 0:00:05.6]} 49. Rg7+ {[%clk 0:00:09.7]} 49... Kc6 {[%clk 0:00:05.4]} 50.
d7 {[%clk 0:00:07.2]} 50... Kc7 {[%clk 0:00:05.1]} 51. Rg8 {[%clk 0:00:07.5]}
1-0

[Event "Late-Titled-Tuesday-Blitz-January-23-2024"]
[Site "Chess.com"]
[Date "2024.01.23"]
[Round "4"]
[White "Rdeux42"]
[Black "stregachess"]
[Result "0-1"]
[WhiteElo "2443"]
[BlackElo "2109"]
[TimeControl "180+1"]
[EndTime "14:38:39 PST"]
[Termination "stregachess won on time"]

1. d4 {[%clk 0:02:39.6]} 1... Nf6 {[%clk 0:02:59.1]} 2. Nf3 {[%clk 0:02:38.8]}
2... d5 {[%clk 0:02:55.6]} 3. e3 {[%clk 0:02:34.6]} 3... e6 {[%clk 0:02:53.9]}
4. Bd3 {[%clk 0:02:21.2]} 4... c6 {[%clk 0:02:53.4]} 5. O-O {[%clk 0:02:18.8]}
5... Nbd7 {[%clk 0:02:52.7]} 6. Nbd2 {[%clk 0:02:19.2]} 6... Be7 {[%clk
0:02:49.3]} 7. e4 {[%clk 0:02:19.5]} 7... dxe4 {[%clk 0:02:48.9]} 8. Nxe4 {[%clk
0:02:20.4]} 8... Nxe4 {[%clk 0:02:47.4]} 9. Bxe4 {[%clk 0:02:21.3]} 9... Nf6
{[%clk 0:02:47.3]} 10. Bd3 {[%clk 0:02:21.8]} 10... h6 {[%clk 0:02:44.9]} 11. c4
{[%clk 0:02:13.3]} 11... c5 {[%clk 0:02:32.8]} 12. dxc5 {[%clk 0:02:09.9]} 12...
Bxc5 {[%clk 0:02:29.4]} 13. Qe2 {[%clk 0:02:09.8]} 13... O-O {[%clk 0:02:27.6]}
14. a3 {[%clk 0:02:09.5]} 14... a5 {[%clk 0:02:19.7]} 15. b3 {[%clk 0:02:08.9]}
15... Qb6 {[%clk 0:02:06.7]} 16. Qc2 {[%clk 0:01:56]} 16... Bd7 {[%clk
0:02:01.1]} 17. Bb2 {[%clk 0:01:53.1]} 17... Be7 {[%clk 0:02:00.2]} 18. Ne5
{[%clk 0:01:50.9]} 18... Bc6 {[%clk 0:01:50.8]} 19. Nxc6 {[%clk 0:01:45]} 19...
Qxc6 {[%clk 0:01:49.2]} 20. Rad1 {[%clk 0:01:33]} 20... Rfd8 {[%clk 0:01:48.4]}
21. Be2 {[%clk 0:01:18.2]} 21... Qc7 {[%clk 0:01:44]} 22. Bf3 {[%clk 0:01:15.7]}
22... Rxd1 {[%clk 0:01:32.9]} 23. Rxd1 {[%clk 0:01:16.6]} 23... Rd8 {[%clk
0:01:32.8]} 24. g3 {[%clk 0:01:01.1]} 24... Rd7 {[%clk 0:01:27.7]} 25. Rd3
{[%clk 0:00:57]} 25... Qd8 {[%clk 0:01:27.2]} 26. Rxd7 {[%clk 0:00:55.6]} 26...
Qxd7 {[%clk 0:01:27.3]} 27. Kg2 {[%clk 0:00:54.3]} 27... Qc7 {[%clk 0:00:52.7]}
28. Qd3 {[%clk 0:00:41.6]} 28... b6 {[%clk 0:00:44.3]} 29. Qc3 {[%clk
0:00:40.6]} 29... Qc5 {[%clk 0:00:42.3]} 30. Qd4 {[%clk 0:00:35.2]} 30... Qc7
{[%clk 0:00:38.5]} 31. Qd3 {[%clk 0:00:34.5]} 31... Qc5 {[%clk 0:00:38.2]} 32.
h4 {[%clk 0:00:33.5]} 32... Qc7 {[%clk 0:00:35.2]} 33. Qe3 {[%clk 0:00:31.5]}
33... Kh7 {[%clk 0:00:26.1]} 34. Be5 {[%clk 0:00:30.5]} 34... Qd8 {[%clk
0:00:24.6]} 35. Bb2 {[%clk 0:00:23.2]} 35... Qc7 {[%clk 0:00:23.6]} 36. Qc3
{[%clk 0:00:20.2]} 36... Qd8 {[%clk 0:00:22.9]} 37. g4 {[%clk 0:00:20.1]} 37...
Ne8 {[%clk 0:00:20.6]} 38. Be4+ {[%clk 0:00:18.5]} 38... Kg8 {[%clk 0:00:19.7]}
39. h5 {[%clk 0:00:18.5]} 39... Bf6 {[%clk 0:00:19.4]} 40. Qc2 {[%clk
0:00:17.9]} 40... Bxb2 {[%clk 0:00:19.4]} 41. Qxb2 {[%clk 0:00:18.8]} 41... Nf6
{[%clk 0:00:19.4]} 42. Bf3 {[%clk 0:00:18.5]} 42... Qd7 {[%clk 0:00:19]} 43. b4
{[%clk 0:00:15.6]} 43... axb4 {[%clk 0:00:18.7]} 44. axb4 {[%clk 0:00:16.5]}
44... Qc7 {[%clk 0:00:18.7]} 45. Qc1 {[%clk 0:00:12]} 45... Kf8 {[%clk
0:00:18.1]} 46. c5 {[%clk 0:00:12]} 46... bxc5 {[%clk 0:00:17.8]} 47. bxc5
{[%clk 0:00:12.9]} 47... Ke7 {[%clk 0:00:18.1]} 48. Qa3 {[%clk 0:00:11.6]} 48...
Kd8 {[%clk 0:00:16.3]} 49. Qa8+ {[%clk 0:00:11.2]} 49... Ke7 {[%clk 0:00:16.2]}
50. Qa3 {[%clk 0:00:09.5]} 50... Kd8 {[%clk 0:00:16.1]} 51. c6 {[%clk
0:00:08.5]} 51... Ne8 {[%clk 0:00:14]} 52. Qa8+ {[%clk 0:00:07.3]} 52... Ke7
{[%clk 0:00:14]} 53. Qa3+ {[%clk 0:00:06.9]} 53... Kd8 {[%clk 0:00:14.2]} 54.
Qc3 {[%clk 0:00:06.8]} 54... Ke7 {[%clk 0:00:13.6]} 55. Qc5+ {[%clk 0:00:06.6]}
55... Kd8 {[%clk 0:00:13.6]} 56. Qb5 {[%clk 0:00:04.8]} 56... Ke7 {[%clk
0:00:13.5]} 0-1